Cogmind - Beta 17 *** ADVENTURER MODE // 2026.07.22 @ 21:17:01 Player: liability Result: Self-destructed Performance ------------- Evolutions (1) 500 Regions Visited (2) 400 Robots Destroyed (12) 60 Value Destroyed (258) 258 Prototype IDs (0) 0 Alien Tech Used (0) 0 Bonus (0) 0 TOTAL SCORE: 1218 Bonus ------- None Cogmind --------- Core Integrity 369/400 Matter 295/300 Energy 250/250 System Corruption 0% Temperature Cool (0) Movement Walking (120) Location -9/Materials Parts ------- > --- POWER (1) -------- Ion Engine > --- PROPULSION (2) --- Aluminum Leg Aluminum Leg > --- UTILITY (3) ------ Improved Heat Sink Medium Storage Unit Improved Terrain Scanner > --- WEAPON (3) ------- Particle Gun > --- INVENTORY (10) --- Aluminum Leg Aluminum Leg Aluminum Leg Small Storage Unit Large Battery (200) Large Battery (200) Peak State ------------ > --- POWER ------------ Ion Engine > --- PROPULSION ------- Aluminum Leg Aluminum Leg > --- UTILITY ---------- Improved Heat Sink Medium Storage Unit Improved Terrain Scanner > --- WEAPON ----------- EM Pulse Gun Particle Gun > --- INVENTORY -------- Aluminum Leg Aluminum Leg Aluminum Leg Small Storage Unit Large Battery Large Battery [Rating: 13] Favorites ----------- Power Ion Engine Engine Ion Engine Propulsion Aluminum Leg Leg Aluminum Leg Utility Improved Terrain Scanner Device Improved Terrain Scanner Storage Medium Storage Unit Weapon EM Pulse Gun Energy Gun EM Pulse Gun Ballistic Gun Assault Rifle Build | -11 -10 -9 ------- Run | Yrd Mat Mat Slots Evolved 2 | . . 2 Power . | . . . Propulsion . | . . . Utility 1 | . . 1 Weapon 1 | . . 1 Parts Attached 13 | 7 5 1 Power 1 | 1 . . Engine 1 | 1 . . Core . | . . . Reactor . | . . . Propulsion 3 | 2 1 . Treads . | . . . Leg 3 | 2 1 . Wheel . | . . . Hover . | . . . Flight . | . . . Utility 4 | 2 1 1 Device 2 | 1 . 1 Storage 2 | 1 1 . Processor . | . . . Hackware . | . . . Protection . | . . . Artifact . | . . . Weapon 5 | 2 3 . Energy Gun 4 | 1 3 . Energy Cannon . | . . . Ballistic Gun 1 | 1 . . Ballistic Cannon . | . . . Launcher . | . . . Special Weapon . | . . . Impact Weapon . | . . . Slashing Weapon . | . . . Piercing Weapon . | . . . Special Melee Weapon . | . . . Unidentified Prototypes . | . . . Parts Lost 1 | . . 1 Power . | . . . Propulsion . | . . . Utility . | . . . Weapon 1 | . . 1 Highest Loss Streak 1 | . . 1 To Critical Strikes . | . . . Average Backups 2 | . 2 6 Power . | . . . Propulsion 1 | . 1 3 Utility 1 | . 1 3 Weapon . | . . . Tool/Special . | . . . Unused Backups 5 | . . 5 Power . | . . . Propulsion 3 | . . 3 Utility 2 | . . 2 Weapon . | . . . Tool/Special . | . . . Average Slot Usage (%) 98 | . 100 86 Engine 13 | . 14 11 Leg 27 | . 28 22 Device 15 | . 14 22 Storage 13 | . 14 11 Energy Gun 22 | . 23 20 Ballistic Gun 4 | . 4 . Peak Build Rating 13 | 9 10 13 Average Rating 9 | 5 9 12 On Entrance 6 | . 9 10 Avg Prop Armor Cover (%) . | . . . Naked Turns . | . . . Heaviest Build 22 | 15 21 22 Greatest Support 20 | 20 20 20 Greatest Overweight (x) 1 | . 1 1 Average Overweight (x) . | . . . Largest Inventory Capacity 10 | 8 10 10 Average Capacity 9 | 6 9 10 Most Carried 7 | . 7 6 Average Carried 2 | . 2 6 Final Capacity 10 | 8 10 10 Final Carried 7 | . 7 6 Class Distribution -------------------- 89% | Mutant 10% | Scavenger-Mutant Dominant Class ---------------- Mutant | -10/Materials Scavenger-Mutant | -9/Materials Resources | -11 -10 -9 ----------- Run | Yrd Mat Mat Matter Collected 335 | 219 116 . Remotely . | . . . Salvage Created 361 | 22 279 60 Parts 29 | 3 21 5 Haulers Intercepted 1 | . 1 . Recyclers Shooed . | . . . Parts Field Recycled . | . . . Retrieved Matter . | . . . Parts Self-Destructed . | . . . Prevented . | . . . Parts Restored . | . . . Kills | -11 -10 -9 ------- Run | Yrd Mat Mat Combat Hostiles Destroyed 7 | . 6 1 Guns 4 | . 3 1 AOE 3 | . 3 . Classes Destroyed 8 | 1 6 1 Worker 1 | . 1 . Builder 1 | . 1 . Tunneler 1 | 1 . . Hauler 1 | . 1 . Watcher 1 | . 1 . Swarmer 2 | . 2 . Grunt 4 | . 4 . Sentry 1 | . . 1 Best Kill Streak 7 | 1 7 1 Combat Bots Only 4 | . 4 1 Max Kills in Single Turn 5 | 1 5 1 Gunslinging . | . . . Exploded 2 | . 2 . Melee . | . . . Uniques/NPCs Destroyed . | . . . Combat | -11 -10 -9 -------- Run | Yrd Mat Mat Hostile Shots Fired 48 | . 23 25 Missed 16 | . 6 10 Hits 32 | . 17 15 Projectile 32 | . 17 15 Critical Strikes 1 | . . 1 Damage Taken 305 | 12 185 108 Core 37 | . 6 31 Absorbed by Shields . | . . . Ignored by Resistances 95 | 4 56 35 Core Remaining (%) 98 | 100 97 . Volleys Fired 23 | 1 15 7 Largest 2 | 2 2 2 Hottest 105 | 60 105 105 Shots Fired 38 | 2 25 11 Gun 38 | 2 25 11 Cannon . | . . . Launcher . | . . . Special . | . . . Kinetic 5 | 1 4 . Thermal 18 | . 11 7 Explosive . | . . . Electromagnetic 15 | 1 10 4 Robot Hit Streak 19 | 2 11 19 Robot Miss Streak 3 | . 1 3 Penetration Max . | . . . Secondary Targets . | . . . Shots Hit Robots 29 | 2 19 8 Core Hits 16 | 1 13 2 Critical Kills . | . . . Critical Parts Destroyed . | . . . Critical Strikes . | . . . Melee Attacks . | . . . Impact . | . . . Slashing . | . . . Piercing . | . . . Sneak Attacks . | . . . Combat Hostiles . | . . . Follow-up Attacks . | . . . Damage Inflicted 744 | 71 564 109 Guns 423 | 15 299 109 Cannons . | . . . Explosions 321 | 56 265 . Melee . | . . . Ramming . | . . . Kinetic 36 | . 36 . Thermal 541 | 56 422 63 Explosive . | . . . Electromagnetic 167 | 15 106 46 Impact . | . . . Slashing . | . . . Piercing . | . . . Highest Corruption . | . . . Average Corruption . | . . . Corruption Purged . | . . . Corruption Blocked . | . . . Overload Shots . | . . . Overflow Damage . | . . . Projectiles . | . . . Explosions . | . . . Melee . | . . . Knockbacks . | . . . Impact . | . . . Kinetic . | . . . Secondary . | . . . Self-Inflicted Damage 46 | 12 34 . Shots 2 | 1 1 . Rammed . | . . . Targets Rammed . | . . . Kicked . | . . . Crushed . | . . . Highest Temperature 357 | 12 357 7 Average Temperature 158 | 12 191 4 Received Heat Transfer 108 | . 90 18 Effects 2 | . 2 . Interference 2 | . 2 . Siege Activations . | . . . Martial Activations . | . . . Shielding Activations . | . . . Robots Disrupted . | . . . Combat Hostiles . | . . . Robots Corrupted . | . . . Combat Hostiles . | . . . Parts Fried . | . . . Impact Corruptions . | . . . Robots Melted . | . . . Combat Hostiles . | . . . Parts Melted . | . . . Heat Transferred 868 | 100 620 148 Parts Sabotaged . | . . . Parts Stolen . | . . . Parts Stripped . | . . . Power Chain Reactions 3 | 1 2 . Alert | -11 -10 -9 ------- Run | Yrd Mat Mat Maximum Alert Level . | . . . Low Security (%) 100 | 100 100 100 Level 1 . | . . . Level 2 . | . . . Level 3 . | . . . Level 4 . | . . . Level 5 . | . . . High Security . | . . . Max Security . | . . . Peak Influence 116 | 5 116 30 Initial 11 | . . 11 Average 43 | . 54 13 Influence Increases 233 | 5 194 34 Destroy 0b10 Robot/C 140 | . 120 20 Destroy 0b10 Robot/NC 25 | 5 20 . Destroy Leader 44 | . 34 10 Successful Hack 15 | . 11 4 Destroy Structure 9 | . 9 . Influence Decreases 213 | 5 161 47 Entered New Map 22 | . . 22 Time Decay 181 | 5 161 15 Lost Part 10 | . . 10 Squads Dispatched . | . . . Investigation . | . . . Extermination . | . . . Reinforcement . | . . . Assault . | . . . Garrison . | . . . Intercept . | . . . Searches Triggered . | . . . Construction Impeded . | . . . Haulers Reinforced . | . . . Active Scanning Responses . | . . . Cargo Convoy Interrupts . | . . . Stealth | -11 -10 -9 --------- Run | Yrd Mat Mat Distress Signals . | . . . Communications Jammed . | . . . Distress Signals . | . . . Times Spotted 16 | . 11 5 Peak Tracking Total 5 | . 5 5 Tactical Retreats . | . . . Traps | -11 -10 -9 ------- Run | Yrd Mat Mat Traps Triggered . | . . . Indirectly . | . . . Trap Hack Attempts . | . . . Triggered . | . . . Disarmed . | . . . Reprogrammed . | . . . Reused . | . . . Traps Extracted . | . . . Installed . | . . . Triggered . | . . . Machines | -11 -10 -9 ---------- Run | Yrd Mat Mat Machines Disabled . | . . . Max in Single Turn . | . . . Machines Repaired . | . . . Machines Dismantled . | . . . Machines Sabotaged . | . . . Overloaded Fab Kills . | . . . Hacking | -11 -10 -9 --------- Run | Yrd Mat Mat Machines Accessed 3 | . 2 1 Terminals 3 | . 2 1 Fabricators . | . . . Repair Stations . | . . . Recycling Units . | . . . Scanalyzers . | . . . Garrison Access . | . . . Total Hacks 6 | . 5 1 Successful 4 | . 3 1 Failed 2 | . 2 . Catastrophic 1 | . 1 . Database Lockouts . | . . . Manual 3 | . 3 . Terminals 6 | . 5 1 Fabricators . | . . . Repair Stations . | . . . Recycling Units . | . . . Scanalyzers . | . . . Garrison Access . | . . . Terminal Hacks 4 | . 3 1 Branch Access Points 1 | . 1 . Locate Traps 1 | . 1 . Zone Layout 2 | . 1 1 Fabricator Hacks . | . . . Repair Station Hacks . | . . . Recycling Unit Hacks . | . . . Scanalyzer . | . . . Garrison Access Hacks . | . . . Unauthorized Hacks . | . . . Terminals . | . . . Fabricators . | . . . Repair Stations . | . . . Recycling Units . | . . . Scanalyzers . | . . . Garrison Access . | . . . Data Cores Recovered . | . . . Used . | . . . Hacking Detections 1 | . 1 . Full Trace Events . | . . . Feedback Events . | . . . Feedback Blocked . | . . . Robot Schematics Acquired . | . . . Robots Built . | . . . Authchips . | . . . Time . | . . . Total Robot Build Rating . | . . . Part Schematics Acquired . | . . . Parts Built . | . . . Authchips . | . . . Time . | . . . Total Part Build Rating . | . . . Part Studies Acquired . | . . . Parts Repaired . | . . . Time . | . . . Parts Recycled . | . . . Recycled Matter . | . . . Retrieved Matter . | . . . Retrieved Components . | . . . Parts Scanalyzed . | . . . Part Schematics Acquired . | . . . Parts Damaged . | . . . Bothacking | -11 -10 -9 ------------ Run | Yrd Mat Mat Used RIF Installer . | . . . Robots Hacked . | . . . Non-combat . | . . . Combat . | . . . Robot Hacks Applied . | . . . Relay Couplers Released . | . . . Fabnet Peak Effective % . | . . . Robots Rewired . | . . . Allies Hacked . | . . . Hacks Repelled . | . . . Allies | -11 -10 -9 -------- Run | Yrd Mat Mat Total Allies . | . . . Largest Group . | . . . Highest-Rated Group . | . . . Highest-Rated Ally . | . . . Total Orders . | . . . Ally Attacks . | . . . Total Damage . | . . . Kills . | . . . Allies Corrupted . | . . . Allies Melted . | . . . Intel | -11 -10 -9 ------- Run | Yrd Mat Mat Active Infowar (turns) 488 | 9 420 59 Terrain 488 | 9 420 59 Robot Analysis Total . | . . . Derelict Logs Recovered . | . . . Drone Launches . | . . . Drone Recoveries . | . . . Exploration | -11 -10 -9 ------------- Run | Yrd Mat Mat Turns Passed 563 | 68 436 59 Spaces Moved 313 | 49 242 22 Core 5 | 5 . . Treads . | . . . Legs 308 | 44 242 22 Wheels . | . . . Hover . | . . . Flight . | . . . Fastest Speed 50 | 50 120 120 Average Speed 152 | 112 157 180 Slowest Speed 190 | 120 190 190 Overloaded Moves . | . . . Propulsion Burnouts . | . . . Robots Hopped . | . . . Potential Cave-ins . | . . . Cave-ins Triggered . | . . . Exploration Rate (%) 16 | 4 40 4 Regions Visited 2 Branch Regions . Pre-discovered Areas . | . . . Known Exits Taken . | . . . Unknown Exits Taken 2 | 1 1 . Scrap Searched . | . . . Spaces Dug . | . . . Terrain Destroyed 9 | 2 7 . Melee . | . . . Projectile . | . . . AOE 9 | 2 7 . Terrain Rammed . | . . . Walls Destroyed . | . . . Machines Disabled . | . . . Actions | -11 -10 -9 --------- Run | Yrd Mat Mat Total 357 | 56 271 30 Wait . | . . . Move 311 | 48 241 22 Hop . | . . . Pick Up 6 | . 6 . Fast Attach 11 | 7 4 . Attach 1 | . . 1 Detach . | . . . Swap 1 | . 1 . Drop 4 | . 4 . Fire 23 | 1 15 7 Melee . | . . . Ram . | . . . Kick . | . . . Crush . | . . . Escape Stasis . | . . . Rewire . | . . . Trap . | . . . Miscellaneous . | . . . Route ------- -11/Scrapyard -10/Materials (discovered 3 exits: *Mat / *Min x2) -9/Materials History --------- Turn | Location | Event 3 | -11/Scrapyard | Discovered new exit (range 15) 69 | -11/Scrapyard | Entered Materials 132 | -10/Materials | Discovered new exit (range 13) 170 | -10/Materials | Identified exit to Mines 314 | -10/Materials | Build established: Mutant 382 | -10/Materials | Discovered new exit (range 5) 505 | -10/Materials | Entered another Materials area 505 | -9/Materials | Evolved 2 slots: Utility x1, Weapon x1 564 | -9/Materials | Self-destructed Last Messages --------------- 00397_ U-05 Engineer builds a Wall. 00402_ U-05 Engineer lays Concrete. 00404_ U-05 Engineer builds a Door. 00408_ U-05 Engineer lays Concrete. 00409_ Acquired Imp. Heat Sink. 00409_ U-05 Engineer lays Concrete. 00412_ U-05 Engineer builds a Wall. 00416_ U-05 Engineer lays Concrete. 00418_ U-05 Engineer builds a Wall. 00452_ Acquired Lrg. Battery. PARAMETERS=UTILITY+1,WEAPON+1 LOCATION=UNKNOWN GOAL=ESCAPE 00514_ Connecting with Terminal... 00514_ Current location identified: Materials >>Layout(Zone) Retrieving Zone 4U layout... Downloaded map data. 00546_ Y-45 Defender destroyed. 00553_ EM Pulse Gun destroyed. Map ----- +----------------------------------------------------+ | | | | | | | | | | | | | ?????????????????????????????????????????????????? | | ?????????????????????????????????????????????????? | | ?????????????????????????????????????????????????? | | ????????????????????????????????????????????????#? | | ???????????????????????##????#???????????????????? | | ??????????????????????? #???????#????????????????? | | ??????????????????????? #????????????????????????? | | ???????????????????????"#??#???############??????? | | ???????????????????????"######## # """" #??????? | | ???????????????????? ? # """ # # """" #??????? | | ??????????????????????? # """ # # """" #???#### | | ?????????????????????"? ? """ + + #???# | | ?????????????????????"? # # # !#?#?# | | ??????????????????????? # # # "T" #???# | | ????????????????#??????## # ########???# | | ????????????????????#???######## ############ "" | | ??????????????????????????#????# # ## "R | | ????????????????#??#######?????# # "" ## "" | | ???????????????????# ####### # T" ## " | | ???????????????????# = @ # """ "" ## | | ???????????????????# !%! sss + """ ##### | | ?????????????? *[ s # """ #???? | | ?????????????####### #### #### #???? | | ???????????????????###+###### #??# #???? | | ??????????????????????? T # ############+#???? | | ??????????????????????? # ## #?# #???? | | ???????????????????????""" # ## #?# #???? | | ???????????????????????""" # ## #?# #???? | | ???????????????????????""" # ## #?# #???? | | ????????????????????????????# #?? ?????????????? | | ???????????????????????? ???# #????????????????? | | ????????????????????????????# #????????????????? | | ???????????????????????????? ??? ????????????? | | ???????????????????????????? ????????????????? | | ????????????????????????????? ?????????????????? | | ?????????????????????????????????????????????????? | | ?????????????????????????????????????????????????? | | ?????????????????????????????????????????????????? | | ?????????????????????????????????????????????????? | | ?????????????????????????????????????????????????? | | ?????????????????????????????????????????????????? | | ?????????????????????????????????????????????????? | | ?????????????????????????????????????????????????? | | ?????????????????????????????????????????????????? | +----------------------------------------------------+ Best States ------------- Heat Dissipation 42 Energy Generation 10 Energy Capacity 250 Matter Stores 300 Matter Capacity 300 Sight Range 16 Terrain Scan Range 16 Terrain Scan Density 10 Resistance: KI 20 Resistance: TH 20 Resistance: EX 20 Resistance: EM 20 Resistance: I 20 Resistance: S 20 Resistance: P 20 Evasion (%) 55 Offensive Hacking 10 Item Schematics ----------------- None Robot Schematics ------------------ None Fabricated ------------ Nothing Repaired ---------- Nothing Studied --------- None Alien Tech Used ----------------- None Achievements -------------- None Challenges ------------ None Game ------ Seed TractorUltimatePlatform Manual? 0 Play Time 00:08:58 Cumulative 39.4 hours Start 2026.07.22 @ 20:11:41 End 2026.07.22 @ 21:17:01 Sessions 1 Manual Loads 0 Difficulty Adventurer Special Mode None Game No. 45 Rogue 0 Adventurer 45 Explorer 0 Win Type - Total 0 Types 0/0/0/0/0/0/0/0/0/0 Lore% 19 Gallery% 36 Achievement% 32 Wizard Run 0 Options --------- Layout 0 ASCII 0 Keyboard 0 Movement Mouse Keybinds 0 Fullscreen 1 Font 18/SmallcapsGlow Map View 76x50 Zoom Use 0% Tactical HUD 1 Map Filters NONE Filters NONE Steam 1 RUN: 1b89dac2-6689-448e-be49-dff5fc8e7f58